Cogmind - Beta 10.1 @@@ ROGUE MODE // 2020.09.22 @ 23:49:34 // Winter2019/RPGLIKE Player: DragoX Result: Destroyed self with Rocket Launcher Performance ------------- Evolutions (0) 0 Regions Visited (2) 400 Robots Destroyed (51) 255 Value Destroyed (923) 923 Prototype IDs (1) 20 Alien Tech Used (0) 0 Bonus (0) 0 TOTAL SCORE: 1598 Bonus ------- None Cogmind --------- Core Integrity 0/600 Matter 207/300 Energy 160/160 System Corruption 0% Temperature Cool (0) Movement Treading (160) Location -10/Mines Parts ------- > --- POWER (1) -------- Light Nuclear Core > --- PROPULSION (1) --- Light Treads > --- UTILITY (1) ------ Experimental Sensor Array > --- WEAPON (1) ------- Rocket Launcher > --- INVENTORY (1) ---- Rocket Launcher Peak State ------------ > --- POWER ------------ Light Nuclear Core > --- PROPULSION ------- Light Treads > --- UTILITY ---------- Experimental Sensor Array > --- WEAPON ----------- Rocket Launcher > --- INVENTORY -------- Rocket Launcher [Rating: 12] Favorites ----------- Power Ion Engine Engine Ion Engine Power Core Light Nuclear Core Propulsion Light Treads Treads Light Treads Utility Improved Terrain Scanner Device Improved Terrain Scanner Weapon Medium Laser Energy Gun Medium Laser Launcher Rocket Launcher Build | -11 -10 -10 ------- Run | Scr Mat Min Slots Evolved . | . . . Power . | . . . Propulsion . | . . . Utility . | . . . Weapon . | . . . Parts Attached 12 | 4 6 2 Power 2 | 1 . 1 Engine 1 | 1 . . Core 1 | . . 1 Reactor . | . . . Propulsion 1 | 1 . . Treads 1 | 1 . . Leg . | . . . Wheel . | . . . Hover . | . . . Flight . | . . . Utility 2 | 1 . 1 Device 2 | 1 . 1 Storage . | . . . Processor . | . . . Hackware . | . . . Protection . | . . . Artifact . | . . . Weapon 7 | 1 6 . Energy Gun 3 | 1 2 . Energy Cannon . | . . . Ballistic Gun . | . . . Ballistic Cannon . | . . . Launcher 4 | . 4 . Special Weapon . | . . . Impact Weapon . | . . . Slashing Weapon . | . . . Piercing Weapon . | . . . Special Melee Weapon . | . . . Unidentified Prototypes 1 | . . 1 Parts Lost 1 | . 1 . Power . | . . . Propulsion . | . . . Utility . | . . . Weapon 1 | . 1 . Highest Loss Streak 1 | . 1 . Average Slot Usage (%) 99 | . 100 99 Engine 18 | . 25 . Core 6 | . . 24 Treads 25 | . 25 25 Device 25 | . 25 25 Energy Gun 11 | . 15 . Launcher 13 | . 9 25 Naked Turns . | . . . Heaviest Build 10 | 8 10 10 Greatest Support 20 | 20 20 20 Greatest Overweight (x) . | . . . Average Overweight (x) . | . . . Largest Inventory Capacity 1 | . 1 1 Average Capacity . | . 1 1 Most Carried 1 | . 1 1 Average Carried . | . . 1 Final Capacity 1 | . 1 1 Final Carried 1 | . 1 1 Class Distribution -------------------- 100% | Mutant Dominant Class ---------------- Mutant | -10/Materials Mutant | -10/Mines Resources | -11 -10 -10 ----------- Run | Scr Mat Min Matter Collected 614 | 240 250 124 Remotely . | . . . Salvage Created 1252 | 192 794 266 Parts 94 | 13 61 20 Haulers Intercepted 2 | . 2 . Recyclers Shooed 3 | . 2 1 Parts Field Recycled . | . . . Retrieved Matter . | . . . Parts Self-Destructed . | . . . Prevented . | . . . Kills | -11 -10 -10 ------- Run | Scr Mat Min Combat Hostiles Destroyed 26 | . 17 9 Guns 11 | . 11 . AOE 15 | . 6 9 Classes Destroyed 8 | 3 4 1 Worker 9 | 1 4 4 Builder 1 | . . 1 Tunneler 4 | 4 . . Hauler 2 | . 2 . Recycler 6 | 1 4 1 Watcher 3 | . 3 . Swarmer 9 | . 6 3 Grunt 17 | . 11 6 Best Kill Streak 7 | 2 7 7 Combat Bots Only 5 | . 5 4 Max Kills in Single Turn 2 | 1 2 2 Gunslinging . | . . . Exploded 2 | . 2 2 Melee . | . . . Uniques/NPCs Destroyed . | . . . Combat | -11 -10 -10 -------- Run | Scr Mat Min Damage Taken 1158 | . 670 488 Core 953 | . 549 404 Absorbed by Shields . | . . . Redirected to Core 684 | . 388 296 Core Remaining (%) 100 | 100 . . Volleys Fired 173 | 26 130 17 Largest 1 | 1 1 1 Hottest 50 | 50 50 33 Shots Fired 173 | 26 130 17 Gun 136 | 26 110 . Cannon . | . . . Launcher 37 | . 20 17 Special . | . . . Kinetic . | . . . Thermal 136 | 26 110 . Explosive 37 | . 20 17 Electromagnetic . | . . . Robot Hit Streak 14 | 5 14 7 Robot Miss Streak 4 | 2 4 2 Penetration Max . | . . . Secondary Targets . | . . . Shots Hit Robots 115 | 19 86 10 Core Hits 85 | 7 58 20 Critical Hits . | . . . Critical Kills . | . . . Critical Parts Destroyed . | . . . Melee Attacks . | . . . Impact . | . . . Slashing . | . . . Piercing . | . . . Sneak Attacks . | . . . Combat Hostiles . | . . . Follow-up Attacks . | . . . Damage Inflicted 3076 | 236 1713 1127 Guns 1239 | 236 1003 . Cannons . | . . . Explosions 1837 | . 710 1127 Melee . | . . . Ramming . | . . . Kinetic . | . . . Thermal 1284 | 236 1003 45 Explosive 1792 | . 710 1082 Electromagnetic . | . . . Impact . | . . . Slashing . | . . . Piercing . | . . . Highest Corruption . | . . . Average Corruption . | . . . Corruption Purged . | . . . Overload Shots . | . . . Overflow Damage 49 | . 30 19 Projectiles . | . . . Explosions 49 | . 30 19 Melee . | . . . Knockbacks . | . . . Impact . | . . . Kinetic . | . . . Secondary . | . . . Self-Inflicted Damage 185 | . 15 170 Shots 6 | . 1 5 Rammed . | . . . Targets Rammed . | . . . Kicked . | . . . Crushed . | . . . Highest Temperature 228 | 100 228 5 Average Temperature 53 | 31 59 3 Received Heat Transfer 285 | . 267 18 Effects 4 | . 4 . Interference 4 | . 4 . Siege Activations . | . . . Robots Corrupted . | . . . Combat Hostiles . | . . . Parts Fried . | . . . Impact Corruptions . | . . . Robots Melted . | . . . Combat Hostiles . | . . . Parts Melted 7 | . 7 . Heat Transferred 3713 | 703 2960 50 Parts Sabotaged . | . . . Parts Stolen . | . . . Parts Stripped . | . . . Power Chain Reactions . | . . . Missiles Intercepted . | . . . Alert | -11 -10 -10 ------- Run | Scr Mat Min Peak Influence 347 | 30 294 347 Initial 48 | . 19 48 Average 134 | 15 127 197 Maximum Alert Level 1 | . 1 1 Low Security (%) 77 | 100 75 76 Level 1 22 | . 24 23 Level 2 . | . . . Level 3 . | . . . Level 4 . | . . . Level 5 . | . . . High Security . | . . . Max Security . | . . . Squads Dispatched 3 | . 3 . Investigation 2 | . 2 . Extermination . | . . . Reinforcement 1 | . 1 . Assault . | . . . Garrison . | . . . Intercept . | . . . Construction Impeded . | . . . Haulers Reinforced . | . . . Stealth | -11 -10 -10 --------- Run | Scr Mat Min Distress Signals 1 | . 1 . Communications Jammed . | . . . Distress Signals . | . . . Times Spotted 41 | . 31 10 Peak Tracking Total 6 | . 6 3 Tactical Retreats 4 | . 4 . Traps | -11 -10 -10 ------- Run | Scr Mat Min Traps Triggered 3 | . 3 . Indirectly . | . . . Trap Hack Attempts . | . . . Triggered . | . . . Disarmed . | . . . Reprogrammed 6 | . 6 . Reused . | . . . Traps Extracted . | . . . Installed . | . . . Triggered . | . . . Machines | -11 -10 -10 ---------- Run | Scr Mat Min Machines Disabled 6 | . 4 2 Max in Single Turn 2 | . 2 1 Machines Sabotaged . | . . . Garrisons Compromised . | . . . Overloaded Fab Kills . | . . . Fab Network Shutdowns . | . . . Hacking | -11 -10 -10 --------- Run | Scr Mat Min Machines Accessed 7 | . 6 1 Terminals 6 | . 5 1 Fabricators . | . . . Repair Stations . | . . . Recycling Units 1 | . 1 . Scanalyzers . | . . . Garrison Access . | . . . Total Hacks 25 | . 21 4 Successful 15 | . 13 2 Failed 10 | . 8 2 Catastrophic 1 | . 1 . Database Lockouts . | . . . Manual 24 | . 21 3 Terminals 21 | . 17 4 Fabricators . | . . . Repair Stations . | . . . Recycling Units 4 | . 4 . Scanalyzers . | . . . Garrison Access . | . . . Terminal Hacks 3 | . 1 2 Part Schematic 2 | . . 2 Reprogram Traps 1 | . 1 . Fabricator Hacks . | . . . Repair Station Hacks . | . . . Recycling Unit Hacks . | . . . Scanalyzer . | . . . Garrison Access Hacks . | . . . Unauthorized Hacks 12 | . 12 . Terminals 8 | . 8 . Track 2 | . 2 . Botnet 4 | . 4 . Detonate 1 | . 1 . Operators 1 | . 1 . Fabricators . | . . . Repair Stations . | . . . Recycling Units 4 | . 4 . Monitor 1 | . 1 . Reject 1 | . 1 . Recyclers 1 | . 1 . Mask 1 | . 1 . Scanalyzers . | . . . Garrison Access . | . . . Data Cores Recovered . | . . . Used . | . . . Hacking Detections 7 | . 6 1 Full Trace Events 3 | . 2 1 Feedback Events . | . . . Feedback Blocked . | . . . Robot Schematics Acquired . | . . . Robots Built . | . . . Matter . | . . . Time . | . . . Total Robot Build Rating . | . . . Part Schematics Acquired 2 | . . 2 Parts Built . | . . . Matter . | . . . Time . | . . . Total Part Build Rating . | . . . Parts Repaired . | . . . Time . | . . . Parts Recycled . | . . . Recycled Matter . | . . . Retrieved Matter . | . . . Retrieved Components . | . . . Parts Scanalyzed . | . . . Part Schematics Acquired . | . . . Parts Damaged . | . . . Bothacking | -11 -10 -10 ------------ Run | Scr Mat Min Used RIF Installer . | . . . Robots Hacked . | . . . Non-combat . | . . . Combat . | . . . Robot Hacks Applied . | . . . Relay Couplers Released . | . . . Robots Rewired . | . . . Allies Hacked . | . . . Hacks Repelled . | . . . Allies | -11 -10 -10 -------- Run | Scr Mat Min Total Allies . | . . . Largest Group . | . . . Highest-Rated Group . | . . . Highest-Rated Ally . | . . . Total Orders . | . . . Ally Attacks . | . . . Total Damage . | . . . Kills . | . . . Allies Corrupted . | . . . Allies Melted . | . . . Intel | -11 -10 -10 ------- Run | Scr Mat Min Robot Analysis Total . | . . . Derelict Logs Recovered 2 | . . 2 Drone Launches . | . . . Drone Recoveries . | . . . Exploration | -11 -10 -10 ------------- Run | Scr Mat Min Turns Passed 2577 | 208 1773 596 Spaces Moved 1059 | 99 623 337 Core 7 | 7 . . Treads 1052 | 92 623 337 Legs . | . . . Wheels . | . . . Hover . | . . . Flight . | . . . Fastest Speed 50 | 50 160 160 Average Speed 159 | 152 160 160 Slowest Speed 160 | 160 160 160 Overloaded Moves . | . . . Propulsion Burnouts . | . . . Robots Hopped . | . . . Cave-ins Triggered 1 | . . 1 Exploration Rate (%) 58 | 5 91 80 Regions Visited 2 Branch Regions 1 Pre-discovered Areas 2 | . . 2 Known Exits Taken . | . . . Unknown Exits Taken 2 | 1 1 . Scrap Searched 2 | . . 2 Spaces Dug 12 | . . 12 Terrain Destroyed 230 | . 79 151 Melee . | . . . Projectile . | . . . AOE 230 | . 79 151 Terrain Rammed . | . . . Walls Destroyed . | . . . Machines Disabled . | . . . Actions | -11 -10 -10 --------- Run | Scr Mat Min Total 1773 | 128 1267 378 Wait 508 | . 492 16 Move 1057 | 98 622 337 Hop . | . . . Pick Up 2 | . 2 . Fast Attach 7 | 4 1 2 Attach 1 | . 1 . Detach . | . . . Swap 4 | . 4 . Drop 3 | . 1 2 Fire 173 | 26 130 17 Melee . | . . . Ram . | . . . Kick . | . . . Crush . | . . . Escape Stasis . | . . . Rewire . | . . . Trap . | . . . Miscellaneous 18 | . 14 4 Route ------- -11/Scrapyard -10/Materials (discovered 4 exits: [*Mat x3] / *Min) -10/Mines (discovered 2 exits: [*Mat x2]) History --------- Turn | Location | Event 4 | -11/Scrapyard | Discovered new exit (range 16) 209 | -11/Scrapyard | Entered Materials 305 | -10/Materials | Build established: Mutant 951 | -10/Materials | Reached level 2 1006 | -10/Materials | Discovered new exit (range 17) 1158 | -10/Materials | Discovered new exit (range 3) 1412 | -10/Materials | Discovered new exit (range 18) 1485 | -10/Materials | Discovered new exit (range 11) 1982 | -10/Materials | Entered Mines 1982 | -10/Mines | Discovered new exit (range 11) 1983 | -10/Mines | Core integrity fell below 50% 1984 | -10/Mines | Reached level 3 2038 | -10/Mines | Crushed by falling debris 2038 | -10/Mines | Core integrity fell below 20% 2070 | -10/Mines | Found a damaged Exp. Sensor Array with a note attached 2074 | -10/Mines | Found Prototype Device 2074 | -10/Mines | Identified Exp. Sensor Array 2238 | -10/Mines | Discovered new exit (range 10) 2403 | -10/Mines | YI-UF0 nonchalantly dropped a Grenade Launcher on the ground 2408 | -10/Mines | Learned location of Zion (-7) 2578 | -10/Mines | Destroyed self with Rocket Launcher Last Messages --------------- Downloading schematic... Signal Interpreter Rating: 1 Schematic downloaded. >>Schematic(Targeting Computer) Downloading schematic... Targeting Computer Rating: 1 Schematic downloaded. 02353_ Connecting with Terminal... 02357_ U-05 Engineer lays Concrete. 02359_ The unstable cave ceiling collapses. 02375_ K-01 Serf destroyed. 02396_ YI-UF0 mumbles something. 02403_ YI-UF0 nonchalantly drops a Grenade Launcher on the ground. 02408_ Acquired derelict log, extracted data. World map updated: -7/Zion. 02417_ YI-UF0 mumbles something. 02551_ U-05 Engineer lays Concrete. 02574_ K-01 Serf destroyed. Map ----- +----------------------------------------------------+ | ?????????????????????## ##?????????# # # | | ????????????????????## ###??????## | | ????????????????????# ##???##?## # | | ????????????????????# ##?## ### <% | | ????????????????????# #??# #= = | | ?????????????????????#? #?## ! # | | ????????????????????## ### ##### # # | | ???????????????????## ##" * #=#??# | | ??????????????????## ### * # #??? | | ?????????????????## ##" = # #??? | | ????????????????## ##" # ##?? | | ????????????????# ## ### #?? | | ????????????????# ###?# ##?# # #?? | | ????????????????# s ##????###??# # ##? | | ????????????##### ##?????????# # ##? | | ???????????## s #??????#??########## #?? | | ??????????## s #?????????#???#???## #?? | | ????###??## =% ##????######???????# #?# | | ???## ### ## #???## #######?# #?? | | ???# ####### #???# ### ### | | ???# ##????## ##???# ## # | | ???## ## #????## #????# ? # | | ?######## #??### #?????# # | | # #?## #????## ## | | # ####### #?# % #???## ! ##? | | ????????# #?## @ ##### ##?? | | ????????#] #??## ## [r ##??? | | ????????# %#???###?## %[ ###### | | ????????#%]#????????## r ##### # #### # | | ????????# #?????????## ##???## ## ? | | ????????# #??????????## #?????## ## #### | | ????????# #???????????## #????### ## ####### | | ??????### ##???????????# #????# # #?? | | ?????## ##??????????# #????# * #?? | | ????## ##????????? #????# =% #### #?? | | ????# ##???????? #????# # ##?# #?? | | ????# #####??? ????# ## ##??# #?? | | ???## """ ##?? ????##### ##???# #?? | | ???# """ #? ???????## ##???# #?? | | ???# """ ????????# ##??# #?? | | ???## ? #???????# #??# ]##? | | ????# ##### ???????## #??# #? | | ???## ##????# ## #???????# #??## #? | | ???# ###????# #??##????????# ##???# #? | | ???# #?????####????????????# ##????# #? | | ??## ###???????????????????## #?????# #? | | ?## ### #????????????????????# #?????# #? | | ## ##?### #?????????????????#### #????## ## | | # ###?## ####??????????????#T## ##??## # | | # ##???# # # #?###?####????## #?## | +----------------------------------------------------+ Best States ------------- Heat Dissipation 25 Energy Generation 14 Energy Capacity 250 Matter Stores 300 Matter Capacity 300 Sight Range 18 Robot Scan Range 48 Terrain Scan Range 16 Terrain Scan Density 10 Evasion (%) 40 Recoil Reduction 1 Item Schematics ----------------- Signal Interpreter | -10/Mines | Hacked Targeting Computer | -10/Mines | Hacked Robot Schematics ------------------ None Fabricated ------------ Nothing Alien Tech Used ----------------- None Achievements -------------- None Challenges ------------ None RPGLIKE | -11 -10 -10 --------- Run | Scr Mat Min Levels Raised 2 | . 1 1 XP Earned 7380 | 3000 2560 1820 XP Spent 2900 | 2650 250 . Upgrades 14 | 13 1 . Inventory Capacity 1 | . 1 . Sight Range 2 | 2 . . Sensor Range 9 | 9 . . Ranged Accuracy 2 | 2 . . Protomatter Created 266 | . 210 56 Integrity Restored 380 | . 290 90 Core 342 | . 252 90 Parts 38 | . 38 . Protomatter Decayed 74 | . 74 . Game ------ Seed FluxLobotomyBeamcaster Manual? 0 Play Time 00:23:29 Cumulative 11.2 hours Start 2020.09.22 @ 23:25:38 End 2020.09.22 @ 23:49:34 Sessions 1 Manual Loads 0 Difficulty Rogue Special Mode Winter2019/RPGLIKE Game No. 19 Rogue 19 Adventurer 0 Explorer 0 Win Type - Total 0 Types 0/0/0/0/0/0/0/0/0 Lore% 10 Gallery% 15 Achievement% 17 Wizard Run 0 Options --------- ASCII 0 Keyboard 0 Movement Mouse Keybinds 0 Fullscreen 1 Font 18/X11 Map View 76x50 Tactical HUD 1 Map Filters NONE Filters NONE Steam 0 RUN: e33ace4f-3456-4364-b8c6-095940ad3ca4